bitfinex/quotes_ETHUSD_20240702
["timestamp","ask_amount","ask_price","bid_price","bid_amount"]
[1719906651183,0.50304723,3442.1,3442.0,1.14816]
[1719906651569,2.90512,3442.2,3442.0,1.14816]
[1719906651880,0.50304801,3442.1,3442.0,1.14816]
[1719906652879,3.40824801,3442.1,3442.0,1.14816]
[1719906654302,3.4082521,3442.1,3442.0,1.14816]
[1719906654670,3.40822291,3442.1,3442.0,1.14816]
[1719906655008,2.9052,3442.1,3442.0,1.14816]
[1719906656169,3.40822268,3442.1,3442.0,1.14816]
[1719906656365,2.9052,3442.1,3442.0,1.14816]
[1719906659011,3.40822034,3442.1,3442.0,1.14816]
[1719906660586,2.9052,3442.1,3442.0,1.14816]
[1719906660791,3.40822498,3442.1,3442.0,1.14816]
[1719906662225,3.40822498,3442.1,3442.0,1.1873061]
[1719906662525,3.40822498,3442.1,3442.0,0.8661461]
[1719906663620,3.40823717,3442.1,3442.0,0.8661461]
[1719906663923,3.40823716,3442.1,3442.0,0.8661461]
[1719906664098,3.40823718,3442.1,3442.0,0.8661461]
[1719906665120,3.40823718,3442.1,3442.0,0.8557366]
[1719906666729,3.40823728,3442.1,3442.0,0.8557366]
[1719906667628,3.40823728,3442.1,3442.0,0.827]
[1719906669931,2.9052,3442.1,3442.0,0.827]
[1719906670131,3.40823787,3442.1,3442.0,0.827]
[1719906671230,3.40823787,3442.1,3442.0,1.14816]
[1719906672897,3.40823787,3442.1,3442.0,0.32116]
[1719906673240,2.90532,3442.0,3441.7,2.3846]
[1719906673530,2.90532,3442.0,3441.9,0.827]
[1719906673709,3.40836839,3442.0,3441.9,0.827]
[1719906676647,2.90532,3442.0,3441.9,0.827]
[1719906676826,3.40837409,3442.0,3441.9,0.827]
[1719906677013,2.90532,3442.0,3441.9,0.827]
[1719906677220,3.40837408,3442.0,3441.9,0.827]
[1719906677441,3.40837408,3442.0,3441.9,1.14816]
[1719906677644,2.90532,3442.0,3441.9,1.14816]
[1719906677948,3.40837412,3442.0,3441.9,1.14816]
[1719906680545,3.40837398,3442.0,3441.9,1.14816]
[1719906681962,2.90532,3442.0,3441.9,1.14816]
[1719906682133,3.40837399,3442.0,3441.9,1.14816]
[1719906682719,2.90532,3442.0,3441.9,1.14816]
[1719906682957,3.40837435,3442.0,3441.9,1.14816]
[1719906686561,3.40837462,3442.0,3441.9,1.14816]
[1719906689859,2.90532,3442.0,3441.9,1.14816]
[1719906690064,3.40837461,3442.0,3441.9,1.14816]
[1719906690367,2.90532,3442.0,3441.9,1.14816]
[1719906690658,3.40837444,3442.0,3441.9,1.14816]
[1719906692576,2.9054,3441.9,3441.5,3.0]
[1719906692868,2.90481,3442.6,3440.7,3.06407959]
[1719906692869,2.90562,3441.6,3441.3,0.827]
[1719906693046,0.50311173,3441.5,3441.3,0.827]
[1719906693242,2.90562,3441.6,3441.4,0.61332]
[1719906693472,0.50311811,3441.5,3441.4,0.61332]
[1719906693633,0.50311811,3441.5,3441.4,1.44032]
[1719906694635,3.40881811,3441.5,3441.4,1.44032]
[1719906695948,2.9058,3441.4,3440.8,2.2717]
[1719906696146,2.9058,3441.4,3440.7,0.827]
[1719906696147,2.90614,3441.0,3440.7,0.827]
[1719906696378,2.9063,3440.8,3440.7,0.827]
[1719906696576,2.90647,3440.6,3439.9,2.2927]
[1719906696878,2.90647,3440.6,3440.4,0.827]
[1719906697249,2.90647,3440.6,3440.0,0.519983]
[1719906697482,2.90647,3440.6,3440.3,0.827]
[1719906697772,2.90647,3440.6,3440.5,0.827]
[1719906700664,2.90647,3440.6,3440.0,3.519983]
[1719906700860,2.90647,3440.6,3440.5,0.827]
[1719906706387,2.9063,3440.8,3440.5,0.827]
[1719906706590,2.9063,3440.8,3440.7,0.827]
[1719906715584,2.9063,3440.8,3440.2,3.0]
[1719906715585,2.90648,3440.6,3440.2,3.0]
[1719906715781,2.90648,3440.6,3440.4,0.827]
[1719906718889,2.90648,3440.6,3440.2,0.46168289]
[1719906719087,2.90648,3440.6,3440.5,0.827]
[1719906721007,2.3524,3441.0,3439.8,2.3412]
[1719906721227,2.90698,3440.0,3439.5,2.4565]
[1719906721373,2.90698,3440.0,3439.2,2.377]
[1719906721569,2.90698,3440.0,3439.7,0.827]
[1719906721777,2.90698,3440.0,3439.9,0.827]
[1719906740867,2.90689,3440.1,3439.9,0.827]
[1719906741062,2.90689,3440.1,3440.0,0.827]
[1719906745833,5.25089,3440.1,3440.0,0.827]
[1719906748376,5.75421905,3440.1,3440.0,0.827]
[1719906749328,5.25089,3440.1,3440.0,0.827]
[1719906749535,5.75421909,3440.1,3440.0,0.827]
[1719906750778,8.66110909,3440.1,3440.0,0.827]
[1719906750948,8.66110909,3440.1,3438.9,2.90788]
[1719906750949,2.90718,3439.8,3439.2,3.0]
[1719906751151,2.90738,3439.6,3439.5,0.827]
[1719906751357,3.41070909,3439.6,3439.5,0.827]
[1719906752971,3.41076525,3439.6,3439.5,0.827]
[1719906753479,3.41076525,3439.6,3439.5,0.827]
[1719906756178,2.90738,3439.6,3439.5,0.827]
[1719906759694,3.41077135,3439.6,3439.5,0.827]
[1719906759850,2.90738,3439.6,3439.5,0.827]
[1719906763592,2.90718,3439.8,3439.5,0.827]
[1719906763747,3.41068517,3439.7,3439.0,5.90781]
[1719906763948,2.9073,3439.7,3439.6,0.827]
[1719906764176,3.41068575,3439.7,3439.6,0.827]
[1719906766102,3.41067995,3439.7,3439.6,0.827]
[1719906769298,2.9073,3439.7,3439.6,0.827]
[1719906769504,3.41067966,3439.7,3439.6,0.827]
[1719906769862,3.41067993,3439.7,3439.6,0.827]
[1719906771595,0.50337993,3439.7,3439.6,1.13767]
[1719906772471,2.90718,3439.8,3439.6,1.13767]
[1719906772675,0.50337721,3439.7,3439.6,1.13767]
[1719906772987,0.5033773,3439.7,3439.6,1.13767]
[1719906773975,3.4106073,3439.7,3439.6,1.13767]
[1719906775805,2.90723,3439.7,3439.6,1.13767]
[1719906776010,3.41060727,3439.7,3439.6,1.13767]
[1719906778377,0.50337727,3439.7,3439.6,1.13767]
[1719906778580,2.2925,3440.7,3439.8,2.4066]
[1719906778816,2.90656,3440.5,3439.9,0.05812962]
[1719906779118,2.90656,3440.5,3440.4,0.827]
[1719906779521,3.40980796,3440.5,3440.4,0.827]
[1719906780678,0.50324796,3440.5,3440.4,0.827]
[1719906780904,5.38514,3441.0,3440.4,0.827]
[1719906781105,0.50322671,3440.9,3440.7,0.827]
[1719906781290,0.50322671,3440.8,3440.7,0.827]
[1719906781475,5.38514,3441.0,3440.7,0.827]
[1719906781776,0.50323088,3440.9,3440.7,0.827]
[1719906781983,5.38514,3441.0,3440.7,0.827]
[1719906782202,0.50322943,3440.8,3440.7,0.827]
[1719906782410,0.50322943,3440.8,3440.1,3.0]
[1719906782577,5.16205,3440.7,3440.3,0.827]
[1719906782775,0.50322943,3440.6,3440.3,0.827]
[1719906784717,5.16205,3440.7,3440.3,0.827]
[1719906784877,0.50327746,3440.6,3440.3,0.827]
[1719906785081,2.90648,3440.6,3440.3,0.827]
[1719906785670,0.50329678,3440.5,3440.3,0.827]
[1719906785922,2.90648,3440.6,3440.3,0.827]
[1719906786079,0.50328615,3440.5,3440.3,0.827]
[1719906786282,2.90648,3440.6,3439.7,5.23621]
[1719906786283,2.90663,3440.4,3439.7,5.23621]
[1719906786481,2.76452611,3440.3,3439.8,3.83002896]
[1719906786779,2.2612,3440.3,3440.0,0.827]
[1719906787817,2.2612,3440.3,3439.5,2.90733]
[1719906787818,0.50333001,3440.2,3439.5,2.90733]
[1719906788041,0.50334592,3440.1,3439.8,0.827]
[1719906788330,5.16794,3440.3,3439.8,0.827]
[1719906788507,0.5033426,3440.2,3439.8,0.827]
[1719906788680,5.16794,3440.3,3439.8,0.827]
[1719906788881,3.41015028,3440.2,3439.8,0.827]
[1719906789127,2.90681,3440.2,3439.8,0.827]
[1719906790124,0.50334673,3440.1,3439.8,0.827]
[1719906790287,2.90681,3440.2,3439.8,0.827]
[1719906790483,0.50334734,3440.1,3439.8,0.827]
[1719906790692,2.90681,3440.2,3439.8,0.827]
[1719906791423,2.90704,3440.0,3439.4,3.0]
[1719906791590,2.90704,3440.0,3439.7,0.827]
[1719906791591,2.4537,3439.9,3439.7,0.827]
[1719906792004,5.36076,3439.9,3439.7,0.827]
[1719906793336,5.35966,3439.9,3439.7,0.827]
[1719906797962,5.35966,3439.9,3439.4,0.65679272]
[1719906797963,5.35966,3439.9,3439.8,0.827]
[1719906798572,2.90706,3439.9,3439.8,0.827]
[1719906808641,5.28872,3440.1,3439.8,0.827]
[1719906808982,0.50335979,3440.0,3439.8,0.827]
[1719906809282,5.28872,3440.1,3439.8,0.827]
[1719906809488,0.50335744,3440.0,3439.8,0.827]
[1719906809783,5.28872,3440.1,3439.8,0.827]
[1719906809991,0.50335743,3440.0,3439.8,0.827]
[1719906810283,5.28872,3440.1,3439.8,0.827]
[1719906810469,0.50335745,3440.0,3439.8,0.827]
[1719906810677,5.28872,3440.1,3439.8,0.827]
[1719906810980,0.50335742,3440.0,3439.8,0.827]
[1719906811152,5.28872,3440.1,3439.8,0.827]
[1719906811356,0.50335717,3440.0,3439.8,0.827]
[1719906811548,5.28872,3440.1,3439.8,0.827]
[1719906811875,0.5033571,3440.0,3439.8,0.827]
[1719906812055,0.5033571,3439.9,3439.8,0.827]
[1719906814583,0.50335658,3439.9,3439.8,0.827]
[1719906815281,0.50335658,3439.9,3439.8,1.500439]
[1719906816167,0.50335658,3439.9,3439.8,4.46571781]
[1719906816843,2.2977,3440.4,3439.9,2.90704]
[1719906817046,0.5032995,3440.3,3440.1,0.827]
[1719906817244,0.5032995,3440.2,3440.1,0.827]
[1719906817446,0.5032995,3440.3,3440.1,1.27356178]
[1719906817646,2.2977,3440.4,3440.1,1.27356178]
[1719906817862,0.50330187,3440.3,3440.1,1.27356178]
[1719906818147,0.50330187,3440.2,3440.1,1.27356178]
[1719906818459,9.8571761,3440.9,3440.1,6.50265178]
[1719906818660,0.50325063,3440.8,3440.7,0.827]
[1719906819085,0.50325063,3440.8,3440.5,0.827]
[1719906819384,0.50325063,3440.7,3440.5,1.26596887]
[1719906819594,0.50325063,3440.6,3440.5,0.827]
[1719906821072,0.50323282,3440.6,3440.5,0.827]
[1719906821277,2.478,3440.9,3440.5,0.827]
[1719906821481,0.50322439,3440.8,3440.5,0.827]
[1719906821677,0.50322439,3440.8,3440.5,1.55663187]
[1719906821878,0.50322439,3440.7,3440.5,1.55663187]
[1719906822059,0.50322439,3440.8,3440.5,1.55663187]
[1719906824207,0.50323218,3440.7,3440.5,0.827]
[1719906835293,2.90633,3440.8,3440.5,0.827]
[1719906840298,0.50323751,3440.7,3440.5,0.827]
[1719906840612,2.90633,3440.8,3440.5,0.827]
[1719906840912,0.50323757,3440.7,3439.9,3.06407959]
[1719906841112,2.9066,3440.5,3440.0,3.0]
[1719906841282,2.9066,3440.5,3440.0,3.827]
[1719906841483,0.50323757,3440.4,3440.1,0.9475618]
[1719906842611,3.40988757,3440.4,3440.1,0.9475618]
[1719906842816,0.50323757,3440.3,3440.1,0.9475618]
[1719906843118,2.90665,3440.4,3440.1,0.9475618]
[1719906843318,0.5033043,3440.3,3439.6,2.3104]
[1719906843612,0.5033043,3440.3,3439.4,2.90744]
[1719906843613,2.9069,3440.1,3439.7,0.827]
[1719906843819,0.5033043,3440.0,3439.7,0.827]
[1719906844017,0.5033043,3440.0,3439.8,0.3827]
[1719906844739,0.5033043,3440.0,3439.9,0.827]
[1719906846517,0.50334953,3440.0,3439.9,0.827]
[1719906846726,3.41031953,3440.0,3439.8,0.3827]
[1719906847019,2.90697,3440.0,3439.7,0.827]
[1719906847412,2.90706,3439.9,3439.7,0.827]
[1719906849642,2.90706,3439.9,3439.3,5.90756]
[1719906849643,2.90724,3439.7,3439.3,3.0]
[1719906849795,2.90724,3439.7,3439.6,0.827]
[1719906850911,2.90734,3439.6,3439.1,3.06407959]
[1719906851227,2.90734,3439.6,3439.2,0.827]
[1719906851425,2.90734,3439.6,3439.3,0.38910796]
[1719906852418,2.9074,3439.5,3439.4,0.827]
[1719906855894,2.9074,3439.5,3439.3,0.38910796]
[1719906856098,2.9074,3439.5,3439.4,0.827]
[1719906857837,2.9074,3439.5,3439.3,0.38910796]
[1719906858041,2.9074,3439.5,3439.3,1.21610796]
[1719906862534,2.9074,3439.5,3439.3,0.38910796]
[1719906862915,2.9074,3439.5,3439.3,1.21610796]
[1719906864923,2.90724,3439.7,3439.3,1.21610796]
[1719906865326,2.90724,3439.7,3439.5,0.827]
[1719906865915,2.90738,3439.6,3439.5,0.827]
[1719906868165,3.41080398,3439.6,3439.5,0.827]
[1719906869274,2.90738,3439.6,3439.5,0.827]
[1719906869443,3.41080407,3439.6,3439.5,0.827]
[1719906870459,0.50342407,3439.6,3439.5,0.827]
[1719906870761,0.50342407,3439.6,3439.5,1.1773908]
[1719906872537,2.90721,3439.8,3439.5,1.1773908]
[1719906872850,0.50341747,3439.7,3439.5,0.827]
[1719906873051,2.3265,3439.7,3439.3,0.827]
[1719906873261,0.5034243,3439.6,3439.3,0.827]
[1719906873564,2.9769243,3439.5,3439.3,0.920288]
[1719906873764,2.9769243,3439.5,3439.2,0.827]
[1719906873765,2.4735,3439.5,3439.2,0.827]
[1719906875159,5.32703,3439.7,3439.2,0.827]
[1719906875351,0.50342238,3439.6,3439.2,0.827]
[1719906875556,0.50342238,3439.5,3439.4,0.827]
[1719906875764,5.32703,3439.7,3439.4,0.827]
[1719906876037,0.50342354,3439.6,3439.4,0.827]
[1719906876272,0.50342354,3439.5,3439.4,0.827]
[1719906879036,0.50341234,3439.5,3439.4,0.827]
[1719906879236,0.50341234,3439.5,3439.4,1.433485]
[1719906882275,5.17751,3439.9,3439.4,1.433485]
[1719906882438,0.50341475,3439.8,3439.4,1.433485]
[1719906882638,0.50341475,3439.7,3439.4,1.433485]
[1719906882976,0.50341475,3439.6,3439.4,1.433485]
[1719906883278,0.50341475,3439.5,3439.4,1.433485]
[1719906883571,0.50341475,3439.5,3439.4,0.827]
[1719906885552,5.17747,3439.9,3439.4,0.827]
[1719906885756,0.50339555,3439.8,3439.4,0.827]
[1719906885958,0.50339555,3439.7,3439.4,0.827]
[1719906886254,0.50339706,3439.6,3439.4,1.443695]
[1719906886456,0.50339706,3439.5,3439.4,1.443695]
[1719906888775,0.50339538,3439.5,3439.4,1.443695]
[1719906889062,0.50339586,3439.5,3439.4,1.443695]
[1719906892066,5.17747,3439.9,3439.4,1.443695]
[1719906892263,5.17747,3439.9,3439.4,0.827]
[1719906892264,0.50339968,3439.5,3439.4,0.827]
[1719906894187,0.50339968,3439.5,3439.4,3.73448]
[1719906894351,2.4499,3440.3,3439.6,2.90726]
[1719906894554,0.71429748,3440.2,3440.0,0.827]
[1719906894857,0.50332746,3440.1,3440.0,0.827]
[1719906895472,2.4499,3440.3,3440.0,0.827]
[1719906895662,0.50331849,3440.2,3440.0,0.827]
[1719906896062,0.50331849,3440.4,3440.0,0.827]
[1719906896293,0.50331849,3440.3,3440.0,0.827]
[1719906896455,2.4779,3440.5,3440.0,0.827]
[1719906896456,0.50331849,3440.4,3440.0,0.827]
[1719906898686,0.50332294,3440.3,3440.0,0.827]
[1719906898879,0.50332294,3440.2,3440.0,0.827]
[1719906899077,0.50332294,3440.4,3440.0,0.827]
[1719906899276,0.50332539,3440.3,3440.0,0.827]
[1719906899480,0.50332539,3440.2,3440.0,0.827]
[1719906899696,0.50332539,3440.1,3440.0,0.827]
[1719906901264,0.50332306,3440.1,3440.0,1.20621871]
[1719906902070,0.50332606,3440.1,3440.0,1.20621871]
[1719906902281,2.4779,3440.5,3440.0,1.20621871]
[1719906902584,0.50332311,3440.4,3440.0,0.827]
[1719906902793,0.50332311,3440.3,3440.0,0.827]
[1719906902979,0.50332311,3440.2,3440.0,0.827]
[1719906903182,2.4779,3440.5,3440.0,0.827]
[1719906903489,0.50332307,3440.4,3440.0,0.827]
[1719906903696,0.50332307,3440.3,3440.0,0.827]
[1719906903902,0.50332307,3440.2,3440.0,0.827]
[1719906904074,2.4779,3440.5,3440.0,0.827]
[1719906904272,0.50332308,3440.4,3440.0,0.827]
[1719906904479,0.50332305,3440.3,3440.0,0.827]
[1719906904793,0.50332305,3440.2,3440.0,4.40391071]
[1719906904970,0.50332305,3440.4,3440.0,4.40391071]
[1719906905176,0.50332305,3440.3,3440.2,0.827]
[1719906906678,0.50332305,3440.3,3440.2,1.55809607]
[1719906907599,2.4779,3440.5,3440.2,1.55809607]
[1719906907900,0.50332214,3440.4,3440.2,1.55809607]
[1719906908097,0.50332214,3440.3,3440.2,4.46489607]
[1719906908415,2.4173,3441.0,3440.4,2.90657]
[1719906908600,0.50321781,3440.9,3440.6,0.827]
[1719906908762,0.50321781,3440.8,3440.6,0.827]
[1719906909099,2.4173,3441.0,3440.6,0.827]
[1719906909394,0.50322335,3440.9,3440.6,0.827]
[1719906909595,0.50322335,3440.8,3440.6,0.827]
[1719906909804,2.4173,3441.0,3440.6,0.827]
[1719906910008,0.50322299,3440.9,3440.8,0.827]
[1719906910176,5.15582,3441.4,3440.8,0.827]
[1719906910372,0.50320309,3441.3,3440.8,0.827]
[1719906910603,0.50320309,3441.2,3440.8,0.827]
[1719906910930,0.50320276,3441.1,3440.8,0.827]
[1719906911207,5.15582,3441.4,3440.8,0.827]
[1719906911603,0.50320481,3441.3,3440.8,0.827]
[1719906911930,2.4783,3441.1,3440.8,0.827]
[1719906912093,0.50320481,3441.0,3440.8,0.827]
[1719906913679,2.3002,3441.4,3440.8,0.827]
[1719906913909,0.50321097,3441.3,3441.0,0.827]
[1719906914108,0.50320963,3441.2,3441.0,0.827]
[1719906914279,0.50320957,3441.1,3441.0,0.827]
[1719906915314,2.3002,3441.4,3441.0,0.827]
[1719906915476,0.50320352,3441.3,3441.2,0.827]
[1719906915783,0.50317681,3441.3,3441.2,3.73295]
[1719906915988,2.90514,3442.2,3441.4,2.90574]
[1719906916305,0.50310352,3442.1,3441.9,0.827]
[1719906916517,0.50310352,3442.0,3441.9,0.827]
[1719906917313,2.90514,3442.2,3441.7,0.827]
[1719906917514,3.4082871,3442.1,3441.4,2.90579]
[1719906917835,0.5030771,3442.0,3441.7,0.827]
[1719906918216,0.5030771,3442.1,3441.7,0.827]
[1719906918416,2.90514,3442.2,3441.7,0.827]
[1719906918618,0.50308235,3442.1,3441.7,0.827]
[1719906918823,2.90514,3442.2,3441.7,0.827]
[1719906919036,0.50308289,3442.1,3441.7,0.827]
[1719906919357,2.90514,3442.2,3441.7,0.827]
[1719906919504,0.50307622,3442.1,3441.7,0.827]
[1719906919704,2.90514,3442.2,3441.7,0.827]
[1719906920020,0.50309094,3442.1,3441.7,0.827]
[1719906920238,2.90514,3442.2,3441.7,0.827]
[1719906920407,0.50309608,3442.1,3441.7,0.663849]
[1719906920606,2.4587,3442.3,3442.0,0.827]
[1719906925214,2.90496,3442.4,3442.0,0.827]
[1719906930532,2.90496,3442.4,3441.7,2.90552]
[1719906930758,2.90496,3442.4,3441.8,0.827]
[1719906931336,2.90496,3442.4,3441.7,2.90552]
[1719906931641,2.90496,3442.4,3441.9,0.827]
[1719906934851,2.90504,3442.3,3441.9,0.827]
[1719906935019,2.3444,3442.2,3441.9,0.827]
[1719906938251,0.50307078,3442.1,3441.9,0.827]
[1719906938418,2.3444,3442.2,3441.9,0.827]
[1719906938619,0.50307071,3442.1,3441.9,0.827]
[1719906938830,2.3444,3442.2,3441.9,0.827]
[1719906939154,0.50307073,3442.1,3441.9,0.827]
[1719906939325,2.3444,3442.2,3441.9,0.827]
[1719906939524,0.50307072,3442.1,3441.9,0.827]
[1719906939837,2.3444,3442.2,3441.9,0.827]
[1719906940048,0.50307073,3442.1,3441.9,0.827]
[1719906940225,0.50307073,3442.0,3441.9,0.827]
[1719906940430,2.3444,3442.2,3441.9,0.827]
[1719906940431,0.50307073,3442.1,3441.9,0.827]
[1719906944064,2.3444,3442.2,3441.9,0.827]
[1719906944282,0.50307077,3442.0,3441.9,0.827]
[1719906944877,0.50307077,3442.1,3441.9,0.827]
[1719906947376,0.50307077,3442.1,3441.5,0.05810731]
[1719906947377,2.90522,3442.1,3441.5,2.90565]
[1719906947542,0.50307081,3442.0,3441.7,0.827]
[1719906947754,0.50307081,3441.9,3441.7,0.827]
[1719906947951,0.50307142,3441.8,3441.7,0.827]
[1719906950796,1.00614306,3441.8,3441.7,0.827]
[1719906953874,3.32384306,3441.8,3441.3,2.9058]
[1719906954056,0.50309829,3441.7,3441.5,0.827]
[1719906954256,0.50309829,3441.6,3441.5,0.827]
[1719906954447,0.50309829,3441.7,3441.5,0.827]
[1719906954657,0.50309829,3441.6,3441.5,0.827]
[1719906954855,0.50309829,3441.7,3441.5,0.827]
[1719906959947,0.50309829,3441.9,3441.5,0.827]
[1719906960149,0.50309829,3441.8,3441.3,3.74792157]
[1719906960360,0.50309829,3441.8,3441.7,0.827]
[1719906960688,0.50309699,3441.8,3441.4,0.827]
[1719906961009,2.90538,3441.9,3441.4,0.827]
[1719906961182,0.50310201,3441.8,3441.4,0.827]
[1719906961380,0.50310201,3441.7,3441.4,0.827]
[1719906961573,0.50310201,3441.6,3441.4,0.827]
[1719906961789,0.50310201,3441.7,3441.4,0.827]
[1719906961955,0.50310201,3441.7,3440.9,6.06407959]
[1719906961956,2.90575,3441.5,3440.9,6.06407959]
[1719906962151,0.50310201,3441.4,3441.1,0.827]
[1719906962364,0.50310201,3441.4,3440.9,3.827]
[1719906962674,0.50310201,3441.4,3441.1,0.827]
[1719906962878,2.90575,3441.5,3441.1,0.827]
[1719906963058,0.50316644,3441.3,3441.1,0.827]
[1719906963255,0.50316644,3441.2,3441.1,0.827]
[1719906966213,0.50317569,3441.2,3441.1,0.827]
[1719906968704,0.50317569,3441.2,3441.0,0.827]
[1719906968904,0.50317569,3441.1,3441.0,0.827]
[1719906969102,0.50317569,3441.2,3441.0,0.827]
[1719906969413,2.90596,3441.2,3441.0,0.827]
[1719906969570,0.50319548,3441.1,3441.0,0.827]
[1719906970266,2.90589,3441.3,3441.0,0.827]
[1719906970493,0.5031746,3441.2,3441.0,0.827]
[1719906970690,2.2618,3441.6,3441.0,0.827]
[1719906970691,2.90575,3441.5,3441.0,0.827]
[1719906971008,3.4089683,3441.4,3441.0,0.827]
[1719906971176,0.5031683,3441.3,3441.0,0.827]
[1719906971383,2.9058,3441.4,3441.0,0.827]
[1719906971575,0.50317125,3441.3,3441.0,0.827]
[1719906971780,8.07315,3441.6,3441.2,0.827]
[1719906971971,3.4088758,3441.5,3441.2,0.827]
[1719906972286,3.4089858,3441.4,3441.2,0.827]
[1719906972493,0.5031658,3441.3,3441.2,0.827]
[1719906973000,0.50316685,3441.3,3441.2,0.827]
[1719906973201,2.90582,3441.4,3441.2,0.827]
[1719906973525,0.50317113,3441.3,3441.2,0.827]
[1719906976021,2.90582,3441.4,3441.2,0.827]
[1719906976207,1.00633207,3441.3,3441.2,0.827]
[1719906977608,1.00633207,3441.3,3441.2,1.14871]
[1719906979412,1.00632748,3441.3,3441.2,1.14871]
[1719906980817,0.5031605,3441.3,3441.2,1.14871]
[1719906982376,5.20417,3441.8,3441.2,1.14871]
[1719906982777,0.50314471,3441.7,3441.2,1.14871]
[1719906982997,0.50314471,3441.6,3441.2,1.14871]
[1719906983197,0.50314471,3441.5,3441.3,0.935096]
[1719906983519,2.90531,3442.0,3441.4,0.827]
[1719906983720,0.50313717,3441.9,3441.4,0.827]
[1719906983883,0.50313717,3441.8,3441.4,0.827]
[1719906984209,0.50313717,3441.7,3441.4,0.827]
[1719906984408,0.50313717,3441.6,3441.5,0.7895616]
[1719906984617,0.50313717,3441.6,3441.4,0.827]
[1719906984783,0.50313686,3441.6,3441.4,0.827]
[1719906984981,0.50313686,3441.5,3441.4,0.827]
[1719906985395,0.50313691,3441.5,3441.4,0.827]
[1719906985614,0.50313691,3441.5,3441.4,1.523052]
[1719906986047,5.29481,3442.0,3441.4,1.523052]
[1719906986207,0.50313685,3441.9,3441.4,1.523052]
[1719906986519,0.50313685,3441.8,3441.4,1.523052]
[1719906986817,0.50313678,3441.7,3441.4,1.523052]
[1719906987017,5.29481,3442.0,3441.4,1.523052]
[1719906987197,0.50313665,3441.6,3441.4,1.523052]
[1719906987524,5.29481,3442.0,3441.5,0.40172473]
[1719906987812,0.50313671,3441.9,3441.4,1.523052]
[1719906988020,0.50313671,3441.8,3441.4,1.523052]
[1719906988220,0.50313671,3441.9,3441.4,1.523052]
[1719906988380,0.50313671,3441.8,3441.4,1.523052]
[1719906988585,0.50313671,3441.9,3441.4,1.523052]
[1719906989837,5.29481,3442.0,3441.4,1.523052]
[1719906989993,0.50313651,3441.9,3441.4,1.523052]
[1719906990318,0.50313651,3441.8,3441.4,1.523052]
[1719906990520,2.91523651,3441.7,3441.2,0.827]
[1719906990815,0.50313651,3441.6,3441.2,0.827]
[1719906991186,2.3028,3441.4,3440.8,2.90625]
[1719906991383,0.50313651,3441.3,3440.9,2.01466396]
[1719906993247,0.50317434,3441.2,3440.9,2.01466396]
[1719906993572,0.50317434,3441.1,3440.9,2.01466396]
[1719906993714,0.50317434,3441.3,3440.9,2.01466396]
[1719906993915,0.50317434,3441.2,3440.9,2.01466396]
[1719906994226,0.50317434,3441.1,3440.9,2.01466396]
[1719906994429,2.3028,3441.4,3441.0,1.38913036]
[1719906994619,0.50317287,3441.3,3440.9,0.827]
[1719906994818,2.3028,3441.4,3440.9,0.827]
[1719906994819,0.50317287,3441.2,3440.9,0.827]
[1719906997649,0.5031582,3441.2,3441.1,0.827]
[1719906998151,0.5031582,3441.2,3441.1,6.01374]
[1719906998716,2.9055,3441.8,3441.1,6.01374]
[1719906998922,0.50312747,3441.7,3441.4,0.827]
[1719906999125,2.9055,3441.8,3441.4,0.827]
[1719906999126,0.50312747,3441.6,3441.4,0.827]
[1719906999321,0.50312747,3441.7,3441.4,0.827]
[1719906999524,0.50312747,3441.6,3441.4,0.827]
[1719906999822,0.50311975,3441.5,3441.4,0.827]
[1719907000257,2.9055,3441.8,3441.4,1.59279504]
[1719907000439,0.50312879,3441.7,3441.4,0.827]
[1719907000769,0.50312879,3441.6,3441.4,0.827]
[1719907000929,0.50312879,3441.5,3441.4,0.827]
[1719907001256,0.50312879,3441.5,3441.4,1.490892]
[1719907001851,5.31107,3442.2,3441.4,4.396682]
[1719907002055,1.61112958,3442.1,3441.8,0.827]
[1719907002277,0.50308141,3442.0,3441.8,0.827]
[1719907002456,0.50308141,3441.9,3441.8,0.827]
[1719907003157,0.50306754,3441.9,3441.8,0.827]
[1719907006398,0.50307441,3441.9,3441.8,0.827]
[1719907007029,0.50307441,3442.1,3441.8,0.827]
[1719907009560,5.31107,3442.2,3441.8,0.827]
[1719907009734,0.5030825,3442.1,3441.8,0.827]
[1719907009941,0.5030825,3442.0,3441.8,0.827]
[1719907010170,0.5030825,3442.1,3441.8,0.827]
[1719907011849,0.5030825,3442.1,3442.0,0.827]
[1719907012263,0.5030825,3442.1,3441.8,0.827]
[1719907012860,2.4059,3442.2,3441.8,0.827]
[1719907013043,0.50307403,3442.1,3441.8,0.827]
[1719907013243,2.4059,3442.2,3441.8,0.827]
[1719907013244,0.50307403,3442.0,3441.8,0.827]
[1719907013477,0.50307387,3441.9,3441.8,1.200262]
[1719907016086,0.50304734,3441.9,3441.8,1.200262]
[1719907016459,0.50304735,3442.4,3441.8,1.200262]
[1719907016654,0.50304735,3442.3,3442.0,0.827]
[1719907016861,0.50304735,3442.2,3442.0,0.827]
[1719907017169,0.50304735,3442.1,3442.0,0.827]
[1719907019284,5.21739,3442.5,3442.0,0.827]
[1719907019485,0.5030473,3442.1,3442.0,0.827]
[1719907019893,0.5030473,3442.4,3442.0,0.827]
[1719907020180,3.4080073,3442.4,3442.0,0.827]
[1719907020367,0.5030473,3442.3,3442.0,0.827]
[1719907020956,0.5030473,3442.3,3441.8,0.827]